Cogmind - Beta 16 @@@ ROGUE MODE // 2025.12.02 @ 23:31:13 Player: jumpy Result: Destroyed by D-53 Grenadier with Mini Grenade Launcher Performance ------------- Evolutions (1) 500 Regions Visited (3) 600 Robots Destroyed (15) 75 Value Destroyed (240) 240 Prototype IDs (0) 0 Alien Tech Used (0) 0 Bonus (0) 0 TOTAL SCORE: 1415 Bonus ------- None Cogmind --------- Core Integrity 0/400 Matter 112/300 Energy 59/100 System Corruption 0% Temperature Cool (0) Movement Core (450) Ox8 Location -9/Mines Parts ------- > --- POWER (1) -------- (None) > --- PROPULSION (3) --- (None) > --- UTILITY (3) ------ Large Storage Unit Improved Terrain Scanner > --- WEAPON (2) ------- Shotgun Shotgun > --- INVENTORY (15) --- Ion Engine Light Ion Engine Light Ion Engine Aluminum Leg Wheel Rocket Launcher Mining Laser Plasma Cutter Peak State ------------ > --- POWER ------------ Light Ion Engine > --- PROPULSION ------- Aluminum Leg Aluminum Leg Aluminum Leg > --- UTILITY ---------- Large Storage Unit Seismic Detector > --- WEAPON ----------- Improved Light Cannon Improved Light Cannon > --- INVENTORY -------- Light Ion Engine Aluminum Leg Wheel Improved Terrain Scanner Seismic Detector Shotgun Shotgun Improved Light Cannon Improved Light Cannon Rocket Launcher Mining Laser Plasma Cutter [Rating: 12] Favorites ----------- Power Light Ion Engine Engine Light Ion Engine Propulsion Aluminum Leg Leg Aluminum Leg Utility Seismic Detector Device Seismic Detector Storage Large Storage Unit Weapon Improved Light Cannon Ballistic Gun Assault Rifle Ballistic Cannon Improved Light Cannon Launcher Rocket Launcher Build | -11 -10 -9 -9 ------- Run | Yrd Mat Mat Min Slots Evolved 2 | . . 2 . Power . | . . . . Propulsion 1 | . . 1 . Utility 1 | . . 1 . Weapon . | . . . . Parts Attached 21 | 7 5 2 7 Power 2 | 1 . 1 . Engine 2 | 1 . 1 . Core . | . . . . Reactor . | . . . . Propulsion 3 | 2 . 1 . Treads . | . . . . Leg 3 | 2 . 1 . Wheel . | . . . . Hover . | . . . . Flight . | . . . . Utility 5 | 2 1 . 2 Device 3 | 1 . . 2 Storage 2 | 1 1 . . Processor . | . . . . Hackware . | . . . . Protection . | . . . . Artifact . | . . . . Weapon 11 | 2 4 . 5 Energy Gun . | . . . . Energy Cannon . | . . . . Ballistic Gun 6 | 2 2 . 2 Ballistic Cannon 4 | . 2 . 2 Launcher 1 | . . . 1 Special Weapon . | . . . . Impact Weapon . | . . . . Slashing Weapon . | . . . . Piercing Weapon . | . . . . Special Melee Weapon . | . . . . Unidentified Prototypes . | . . . . Parts Lost 10 | . . . 10 Power 1 | . . . 1 Propulsion 3 | . . . 3 Utility 2 | . . . 2 Weapon 4 | . . . 4 Highest Loss Streak 9 | . . . 9 To Critical Strikes . | . . . . Average Backups 9 | 3 8 11 12 Power 1 | . 1 1 3 Propulsion 1 | 1 1 1 2 Utility 1 | . 2 2 1 Weapon 4 | 1 3 6 5 Tool/Special . | . . . . Unused Backups 10 | . 3 1 6 Power 2 | . . . 2 Propulsion 3 | . 1 . 2 Utility . | . . . . Weapon 3 | . 2 . 1 Tool/Special 2 | . . 1 1 Average Slot Usage (%) 87 | . 100 80 82 Engine 11 | . 14 11 10 Leg 27 | . 28 25 30 Device 11 | . 14 11 10 Storage 11 | . 14 11 11 Ballistic Gun 7 | . 23 . . Ballistic Cannon 16 | . 4 22 20 Peak Build Rating 12 | 7 10 12 12 Average Rating 9 | 5 9 10 11 On Entrance 7 | . 7 10 12 Avg Prop Armor Cover (%) . | . . . . Naked Turns . | . . . . Heaviest Build 34 | 13 32 34 34 Greatest Support 30 | 20 20 30 30 Greatest Overweight (x) 1 | . 1 1 1 Average Overweight (x) . | . . 1 1 Largest Inventory Capacity 15 | 8 15 15 15 Average Capacity 12 | 7 10 15 15 Most Carried 15 | 7 11 15 14 Average Carried 9 | 4 8 11 12 Final Capacity 15 | 8 15 15 15 Final Carried 14 | 7 11 14 8 Class Distribution -------------------- 100% | Mutant Dominant Class ---------------- Mutant | -10/Materials Mutant | -9/Materials Mutant | -9/Mines Resources | -11 -10 -9 -9 ----------- Run | Yrd Mat Mat Min Matter Collected 539 | 291 55 193 . Remotely . | . . . . Salvage Created 561 | 188 137 172 64 Parts 32 | 18 5 8 1 Haulers Intercepted 1 | . 1 . . Recyclers Shooed 1 | 1 . . . Parts Field Recycled . | . . . . Retrieved Matter . | . . . . Parts Self-Destructed . | . . . . Prevented . | . . . . Parts Restored . | . . . . Kills | -11 -10 -9 -9 ------- Run | Yrd Mat Mat Min Combat Hostiles Destroyed 24 | . 2 3 19 Guns 2 | . 2 . . Cannons 3 | . . 3 . AOE 19 | . . . 19 Classes Destroyed 6 | 2 2 . 2 Worker 1 | . . . 1 Tunneler 6 | 5 1 . . Hauler 1 | . 1 . . Recycler 2 | 1 . 1 . Grunt 5 | . 2 3 . Assembled 19 | . . . 19 Best Kill Streak 20 | 4 3 2 20 Combat Bots Only 19 | . 2 2 19 Max Kills in Single Turn 8 | 2 1 1 8 Gunslinging . | . . . . Exploded 8 | . . . 8 Melee . | . . . . Uniques/NPCs Destroyed . | . . . . Combat | -11 -10 -9 -9 -------- Run | Yrd Mat Mat Min Hostile Shots Fired 66 | . 4 6 56 Missed 22 | . 4 3 15 Hits 44 | . . 3 41 Melee 1 | . . . 1 Projectile 43 | . . 3 40 AOE 28 | . . . 28 Damage Taken 1482 | . . 32 1450 Core 410 | . . 20 390 Absorbed by Shields . | . . . . Core Remaining (%) 100 | 100 100 . . Volleys Fired 47 | 15 6 12 14 Largest 2 | 2 2 2 2 Hottest 66 | 40 46 66 66 Shots Fired 88 | 30 12 24 22 Gun 46 | 30 12 . 4 Cannon 37 | . . 24 13 Launcher 5 | . . . 5 Special . | . . . . Kinetic 83 | 30 12 24 17 Thermal . | . . . . Explosive 5 | . . . 5 Electromagnetic . | . . . . Robot Hit Streak 6 | 5 6 4 5 Robot Miss Streak 5 | 2 2 2 5 Penetration Max . | . . . . Secondary Targets . | . . . . Shots Hit Robots 51 | 18 10 13 10 Core Hits 60 | 7 8 4 41 Critical Kills . | . . . . Critical Parts Destroyed . | . . . . Critical Strikes . | . . . . Melee Attacks . | . . . . Impact . | . . . . Slashing . | . . . . Piercing . | . . . . Sneak Attacks . | . . . . Combat Hostiles . | . . . . Follow-up Attacks . | . . . . Damage Inflicted 2200 | 208 173 294 1525 Guns 430 | 208 173 . 49 Cannons 478 | . . 294 184 Explosions 1292 | . . . 1292 Melee . | . . . . Ramming . | . . . . Kinetic 908 | 208 173 294 233 Thermal . | . . . . Explosive 1292 | . . . 1292 Electromagnetic . | . . . . Impact . | . . . . Slashing . | . . . . Piercing . | . . . . Highest Corruption . | . . . . Average Corruption . | . . . . Corruption Purged . | . . . . Corruption Blocked . | . . . . Overload Shots . | . . . . Overflow Damage 40 | . . . 40 Projectiles . | . . . . Explosions 40 | . . . 40 Melee . | . . . . Knockbacks 5 | . . 1 4 Impact . | . . . . Kinetic 5 | . . 1 4 Secondary . | . . . . Self-Inflicted Damage 98 | . . . 98 Shots 3 | . . . 3 Rammed . | . . . . Targets Rammed . | . . . . Kicked . | . . . . Crushed . | . . . . Highest Temperature 13 | . . 12 13 Average Temperature 8 | . . 7 9 Received Heat Transfer 38 | . . 18 20 Siege Activations . | . . . . Martial Activations . | . . . . Shielding Activations . | . . . . Robots Disrupted . | . . . . Combat Hostiles . | . . . . Robots Corrupted . | . . . . Combat Hostiles . | . . . . Parts Fried . | . . . . Impact Corruptions . | . . . . Robots Melted . | . . . . Combat Hostiles . | . . . . Parts Melted . | . . . . Heat Transferred . | . . . . Parts Sabotaged . | . . . . Parts Stolen . | . . . . Parts Stripped . | . . . . Power Chain Reactions . | . . . . Alert | -11 -10 -9 -9 ------- Run | Yrd Mat Mat Min Maximum Alert Level . | . . . . Low Security (%) 100 | 100 100 100 100 Level 1 . | . . . . Level 2 . | . . . . Level 3 . | . . . . Level 4 . | . . . . Level 5 . | . . . . High Security . | . . . . Max Security . | . . . . Peak Influence 56 | 10 45 56 20 Initial 5 | . . 5 . Average 7 | 1 9 10 4 Influence Increases 226 | 30 62 103 31 Destroy 0b10 Robot/C 100 | . 40 60 . Destroy 0b10 Robot/NC 50 | 30 10 5 5 Destroy Leader 32 | . 12 20 . Destroy Structure 29 | . . 3 26 Lose Combat Pursuer 15 | . . 15 . Influence Decreases 226 | 30 47 118 31 Entered New Map 10 | . . 10 . Time Decay 205 | 30 47 108 20 Lost Part 11 | . . . 11 Squads Dispatched 3 | . . 3 . Investigation 1 | . . 1 . Extermination . | . . . . Reinforcement 2 | . . 2 . Assault . | . . . . Garrison . | . . . . Intercept . | . . . . Searches Triggered . | . . . . Construction Impeded 1 | . . 1 . Haulers Reinforced . | . . . . Active Scanning Responses . | . . . . Cargo Convoy Interrupts . | . . . . Stealth | -11 -10 -9 -9 --------- Run | Yrd Mat Mat Min Distress Signals 3 | . 2 1 . Communications Jammed . | . . . . Distress Signals . | . . . . Times Spotted 32 | . 4 5 23 Peak Tracking Total 20 | . 3 3 20 Tactical Retreats 1 | . . 1 . Traps | -11 -10 -9 -9 ------- Run | Yrd Mat Mat Min Traps Triggered 1 | . . 1 . Indirectly . | . . . . Trap Hack Attempts . | . . . . Triggered . | . . . . Disarmed . | . . . . Reprogrammed . | . . . . Reused . | . . . . Traps Extracted . | . . . . Installed . | . . . . Triggered . | . . . . Machines | -11 -10 -9 -9 ---------- Run | Yrd Mat Mat Min Machines Disabled . | . . . . Max in Single Turn . | . . . . Machines Repaired . | . . . . Machines Dismantled . | . . . . Machines Sabotaged . | . . . . Overloaded Fab Kills . | . . . . Hacking | -11 -10 -9 -9 --------- Run | Yrd Mat Mat Min Machines Accessed 1 | . 1 . . Terminals 1 | . 1 . . Fabricators . | . . . . Repair Stations . | . . . . Recycling Units . | . . . . Scanalyzers . | . . . . Garrison Access . | . . . . Total Hacks 3 | . 3 . . Successful . | . . . . Failed 3 | . 3 . . Catastrophic 1 | . 1 . . Database Lockouts . | . . . . Manual 3 | . 3 . . Terminals 3 | . 3 . . Fabricators . | . . . . Repair Stations . | . . . . Recycling Units . | . . . . Scanalyzers . | . . . . Garrison Access . | . . . . Terminal Hacks . | . . . . Fabricator Hacks . | . . . . Repair Station Hacks . | . . . . Recycling Unit Hacks . | . . . . Scanalyzer . | . . . . Garrison Access Hacks . | . . . . Unauthorized Hacks . | . . . . Terminals . | . . . . Fabricators . | . . . . Repair Stations . | . . . . Recycling Units . | . . . . Scanalyzers . | . . . . Garrison Access . | . . . . Data Cores Recovered . | . . . . Used . | . . . . Hacking Detections 1 | . 1 . . Full Trace Events . | . . . . Feedback Events . | . . . . Feedback Blocked . | . . . . Robot Schematics Acquired . | . . . . Robots Built . | . . . . Authchips . | . . . . Time . | . . . . Total Robot Build Rating . | . . . . Part Schematics Acquired . | . . . . Parts Built . | . . . . Authchips . | . . . . Time . | . . . . Total Part Build Rating . | . . . . Part Studies Acquired . | . . . . Parts Repaired . | . . . . Time . | . . . . Parts Recycled . | . . . . Recycled Matter . | . . . . Retrieved Matter . | . . . . Retrieved Components . | . . . . Parts Scanalyzed . | . . . . Part Schematics Acquired . | . . . . Parts Damaged . | . . . . Bothacking | -11 -10 -9 -9 ------------ Run | Yrd Mat Mat Min Used RIF Installer . | . . . . Robots Hacked . | . . . . Non-combat . | . . . . Combat . | . . . . Robot Hacks Applied . | . . . . Relay Couplers Released . | . . . . Fabnet Peak Effective % . | . . . . Robots Rewired . | . . . . Allies Hacked . | . . . . Hacks Repelled . | . . . . Allies | -11 -10 -9 -9 -------- Run | Yrd Mat Mat Min Total Allies . | . . . . Largest Group . | . . . . Highest-Rated Group . | . . . . Highest-Rated Ally . | . . . . Total Orders . | . . . . Ally Attacks . | . . . . Total Damage . | . . . . Kills . | . . . . Allies Corrupted . | . . . . Allies Melted . | . . . . Intel | -11 -10 -9 -9 ------- Run | Yrd Mat Mat Min Active Infowar (turns) 845 | 27 263 446 109 Terrain 6 | . . . 6 Seismic 839 | 27 263 446 103 Robot Analysis Total . | . . . . Derelict Logs Recovered 1 | . . . 1 Drone Launches . | . . . . Drone Recoveries . | . . . . Exploration | -11 -10 -9 -9 ------------- Run | Yrd Mat Mat Min Turns Passed 997 | 169 263 446 119 Spaces Moved 507 | 91 171 205 40 Core 3 | 3 . . . Treads . | . . . . Legs 504 | 88 171 205 40 Wheels . | . . . . Hover . | . . . . Flight . | . . . . Fastest Speed 50 | 50 120 190 190 Average Speed 157 | 117 133 190 190 Slowest Speed 190 | 120 190 190 190 Overloaded Moves . | . . . . Propulsion Burnouts . | . . . . Robots Hopped . | . . . . Potential Cave-ins . | . . . . Cave-ins Triggered . | . . . . Exploration Rate (%) 15 | 7 28 17 11 Regions Visited 3 Branch Regions 1 Pre-discovered Areas 1 | . . . 1 Known Exits Taken . | . . . . Unknown Exits Taken 3 | 1 1 1 . Scrap Searched . | . . . . Spaces Dug . | . . . . Terrain Destroyed 43 | . . 1 42 Melee . | . . . . Projectile 3 | . . 1 2 AOE 40 | . . . 40 Terrain Rammed . | . . . . Walls Destroyed . | . . . . Machines Disabled . | . . . . Actions | -11 -10 -9 -9 --------- Run | Yrd Mat Mat Min Total 617 | 119 199 237 62 Wait 18 | . 3 15 . Move 504 | 90 170 204 40 Hop . | . . . . Pick Up 18 | 7 8 3 . Fast Attach 8 | 7 . 1 . Attach 6 | . . . 6 Detach . | . . . . Swap 8 | . 5 1 2 Drop 8 | . 7 1 . Fire 47 | 15 6 12 14 Melee . | . . . . Ram . | . . . . Kick . | . . . . Crush . | . . . . Escape Stasis . | . . . . Rewire . | . . . . Trap . | . . . . Miscellaneous . | . . . . Route ------- -11/Scrapyard -10/Materials -9/Materials -9/Mines History --------- Turn | Location | Event 13 | -11/Scrapyard | Discovered new exit (range 16) 170 | -11/Scrapyard | Entered Materials 303 | -10/Materials | Build established: Mutant 341 | -10/Materials | Discovered new exit (range 16) 433 | -10/Materials | Entered another Materials area 433 | -9/Materials | Evolved 2 slots: Propulsion x1, Utility x1 869 | -9/Materials | Discovered new exit (range 5) 879 | -9/Materials | Entered Mines 880 | -9/Mines | Assembled infested the area 912 | -9/Mines | Destroyed 19 combat bots 988 | -9/Mines | Core integrity fell below 50% 994 | -9/Mines | Core integrity fell below 20% 998 | -9/Mines | Destroyed by D-53 Grenadier with Mini Grenade Launcher Last Messages --------------- 00970_ C-45 Heavy ARC bursts open, deploying its payload. 00970_ D-53 Grenadier unfolds itself. 00972_ D-53 Grenadier knocked back. 00973_ The unstable cave ceiling collapses. 00974_ Aluminum Leg destroyed. 00975_ D-53 Grenadier knocked back. 00976_ Imp. Light Cannon destroyed. 00980_ Ion Engine destroyed. 00980_ D-53 Grenadier knocked back. 00981_ The unstable cave ceiling collapses. 00983_ Aluminum Leg destroyed. 00985_ The unstable cave ceiling collapses. 00985_ K-01 Serf collects debris. 00986_ The unstable cave ceiling collapses. 00989_ Imp. Light Cannon destroyed. 00990_ The unstable cave ceiling collapses. 00991_ Imp. Light Cannon destroyed. 00991_ Aluminum Leg destroyed. 00991_ Seismic Detector destroyed. 00993_ The unstable cave ceiling collapses. Map ----- +----------------------------------------------------+ | ???????????????????????????????????????? | | ???????????????????????????? ??????????? | | ???????????????????????????? ??????????? | | ??????????????????????????##!??????????? | | ?????????????????????????## ??????????? | | ????????????????????????## ????? #???? | | ???????????????????????## ???? ????? | | ???????????????????????? !##### ????? | | ???????????????????????? # #??? | | ??????????????????????### # """ #??? | | ???????????????????#### # # """ #??? | | ??????????????????## # ### """ #??? | | ??????????????????# # #??? | | ??????????????????# """ #??? | | ??????????????????# % """ #??? | | ???????????????????# %% " #??? | | ???????????????????##" d # #??? | | ????????????????????# % #??? | | ????????????????????# d # #??? | | ????????????????????#### ##########??? | | ??????????????????????## ;##??????????? | | ?????????????????????## ####???????? | | ????????????????????## #???????? | | ????????????????????## #???????? | | ????????????????????# #???????? | | ????????????????????# @ #???????? | | ????????????????????# # ##???????? | | ????????????????????# #???????? | | ????????????????????## ##???????? | | ???????????????????? # ##????????? | | ??????????????????? ###?????????? | | ?????????????????? #### ##???????????? | | ?????????????????####### #????????????? | | ???????????????????# #????????????? | | ???????????????????# ######????????????? | | ???????????????????# #?????????????????? | | ???????????????????# #?????????????????? | | ???????????????????# #?????????????????? | | ?????????????????? #????????????????? | | ?????????????????## ###????????????????? | | ???????????????????#???????????????????? | | ???????????????????????????????????????? | | ???????????????????????????????????????? | | ???????????????????????????????????????? | | ???????????????????????????????????????? | | ???????????????????????????????????????? | | ???????????????????????????????????????? | | ???????????????????????????????????????? | | ???????????????????????????????????????? | | ???????????????????????????????????????? | +----------------------------------------------------+ Best States ------------- Heat Dissipation 28 Energy Generation 10 Energy Capacity 250 Matter Stores 275 Matter Capacity 300 Sight Range 16 Terrain Scan Density 10 Evasion (%) 55 Item Schematics ----------------- None Robot Schematics ------------------ None Fabricated ------------ Nothing Repaired ---------- Nothing Studied --------- None Alien Tech Used ----------------- None Achievements -------------- None Challenges ------------ None Game ------ Seed SurgeAssaultDatajack Manual? 0 Play Time 00:06:55 Cumulative 291.6 hours Start 2025.12.02 @ 23:25:41 End 2025.12.02 @ 23:31:13 Sessions 1 Manual Loads 0 Difficulty Rogue Special Mode None Game No. 625 Rogue 625 Adventurer 0 Explorer 0 Win Type - Total 20 Types 14/0/4/1/1/0/0/0/0/0 Lore% 80 Gallery% 72 Achievement% 50 Wizard Run 0 Options --------- Layout 0 ASCII 0 Keyboard 0 Movement Numpad Keybinds 0 Fullscreen 2 Font 18/Terminus Map View 76x50 Zoom Use 0% Tactical HUD 1 Map Filters NONE Filters SATURATION(100) Steam 1 RUN: b8ac5e6e-5568-4041-b7d8-bbc02f3cc1c2